fUSD/lending_fUSD_20251214
["ID","MTS","AMOUNT","RATE_DAILY","PERIOD"]
[398469055,1765696231827,-589.3,0.00015875,2]
[398469056,1765696231838,-150.0,0.00015881,2]
[398469057,1765696231847,-279.0,0.00015918,2]
[398469058,1765696231857,-300.0,0.00015918,2]
[398469059,1765696231866,-207.48595013,0.00015918,2]
[398469060,1765696231878,-992.51404987,0.00015918,2]
[398469061,1765696231888,-5472.88,0.00015919,2]
[398469062,1765696231897,-166.66,0.00015925,2]
[398469063,1765696231907,-300.0,0.00015933,2]
[398469064,1765696231916,-683.70666909,0.00015933,2]
[398469066,1765696231926,-533.88981491,0.00015933,2]
[398469068,1765696231935,-200.0,0.00016,2]
[398469071,1765696231944,-1845.0,0.0001617,2]
[398469073,1765696231954,-504.89891981,0.00016199,2]
[398469075,1765696231963,-150.0,0.000162,2]
[398469077,1765696231972,-150.0,0.000162,2]
[398469079,1765696231982,-150.0,0.000162,2]
[398469081,1765696231991,-150.0,0.000162,2]
[398469083,1765696232000,-150.0,0.000162,2]
[398469085,1765696232010,-203.23379282,0.00016232,2]
[398469087,1765696232019,-166.66,0.00016241,2]
[398469089,1765696232028,-500.0,0.00016274,2]
[398469091,1765696232037,-705.66284815,0.00016331,2]
[398469093,1765696232046,-500.0,0.00016373,2]
[398469095,1765696232055,-500.0,0.00016373,2]
[398469097,1765696232063,-500.0,0.00016373,2]
[398469099,1765696232073,-500.0,0.00016373,2]
[398469101,1765696232081,-394.62953403,0.00016373,2]
[398469103,1765696232091,-150.0,0.000165,2]
[398469105,1765696232100,-178.21,0.000165,2]
[398469107,1765696232110,-260.75,0.00016518,2]
[398469109,1765696232119,-166.66,0.00016556,2]
[398469111,1765696232130,-772.49864784,0.0001666,2]
[398469113,1765696232139,-150.0,0.00016712,2]
[398469115,1765696232148,-200.0,0.00016712,2]
[398469117,1765696232157,-1589.0,0.00016712,2]
[398469119,1765696232166,-200.0,0.00016712,2]
[398469121,1765696232176,-500.0,0.00016712,2]
[398469123,1765696232185,-150.0,0.00016712,2]
[398469125,1765696232195,-150.0,0.00016712,2]
[398469127,1765696232204,-151.47043981,0.00016712,2]
[398469129,1765696232213,-150.0,0.00016712,2]
[398469131,1765696232222,-150.0,0.00016712,2]
[398469133,1765696232231,-1000.0,0.00016725,2]
[398469135,1765696232241,-1000.0,0.00016743,2]
[398469137,1765696232250,-1000.0,0.00016773,2]
[398469139,1765696232259,-161.55,0.00016777,2]
[398469141,1765696232268,-173.0,0.00016778,2]
[398469143,1765696232277,-1000.0,0.00016802,2]
[398469145,1765696232287,-300.0,0.00016805,2]
[398469147,1765696232296,-1000.0,0.00016807,2]
[398469149,1765696232305,-150.0,0.00016808,2]
[398469151,1765696232314,-1000.0,0.00016814,2]
[398469153,1765696232323,-1000.0,0.00016815,2]
[398469155,1765696232332,-2322.349,0.00016829,2]
[398469157,1765696232342,-2333.97207,0.0001683,2]
[398469159,1765696232351,-3588.4202676,0.00016833,2]
[398469161,1765696232360,-18901.62723703,0.00016837,2]
[398469163,1765696232371,-1391.9138548,0.00016837,2]
[398469166,1765696232390,-371.3259998,0.00016837,2]
[398469446,1765696240062,-500.0,0.00016836,2]
[398469447,1765696240072,-283.07700749,0.00016836,2]
[398469448,1765696240081,-500.0,0.00016836,2]
[398469449,1765696240090,-500.0,0.00016836,2]
[398469450,1765696240099,-281.44674586,0.00016836,2]
[398469451,1765696240200,-218.55325414,0.00016836,2]
[398469452,1765696240209,-227.30992411,0.00016836,2]
[398469457,1765696242954,-272.69007589,0.00016836,2]
[398469458,1765696242965,-60.03231412,0.00016836,2]
[398469459,1765696242977,-372.94045814,0.00016836,2]
[398469462,1765696245856,-67.02722774,0.00016836,2]
[398469463,1765696245865,-500.0,0.00016836,2]
[398469464,1765696245873,-500.0,0.00016836,2]
[398469465,1765696245882,-500.0,0.00016836,2]
[398469466,1765696245891,-437.89694969,0.00016836,2]
[398469492,1765696431370,2000.0,0.000157,2]
[398469493,1765696474869,691.13662643,0.000157,2]
[398469494,1765696474892,308.86337357,0.000157,2]
[398469495,1765696503473,159.16,0.00012674,2]
[398469496,1765696568252,-159.16,0.00015842,2]
[398469497,1765696568276,-150.77,0.00015945,2]
[398469498,1765696568299,-151.32,0.00015945,2]
[398469499,1765696568323,-150.86,0.00015945,2]
[398469500,1765696568352,-1189.81,0.00015945,2]
[398469501,1765696568379,-931.0,0.00016228,2]
[398469502,1765696568404,-300.0,0.00016372,2]
[398469503,1765696568430,-1200.0,0.00016372,2]
[398469504,1765696568456,-550.0,0.00016372,2]
[398469505,1765696568497,-500.0,0.00016373,2]
[398469506,1765696568541,-500.0,0.00016373,2]
[398469507,1765696568587,-500.0,0.00016373,2]
[398469508,1765696568632,-500.0,0.00016373,2]
[398469509,1765696568666,-500.0,0.00016373,2]
[398469510,1765696568690,-500.0,0.00016373,2]
[398469511,1765696568715,-433.64829099,0.00016373,2]
[398469512,1765696568741,-500.0,0.00016373,2]
[398469513,1765696568765,-500.0,0.00016373,2]
[398469514,1765696568791,-500.0,0.00016373,2]
[398469515,1765696568815,-500.84342202,0.00016373,2]
[398469516,1765696568838,-500.0,0.00016373,2]
[398469517,1765696568874,-500.0,0.00016373,2]
[398469518,1765696568898,-500.0,0.00016373,2]
[398469519,1765696568923,-500.0,0.00016373,2]
[398469520,1765696568948,-300.0,0.00016509,2]
[398469521,1765696568973,-300.0,0.00016509,2]
[398469522,1765696568996,-300.0,0.00016509,2]
[398469523,1765696569020,-500.0,0.00016575,2]
[398469524,1765696569047,-150.0,0.00016575,2]
[398469525,1765696569072,-514.99909856,0.00016582,2]
[398469526,1765696569097,-931.0,0.00016587,2]
[398469527,1765696569122,-208.6,0.00016593,2]
[398469528,1765696569146,-392.17383404,0.00016604,2]
[398469529,1765696569169,-1000.0,0.00016671,2]
[398469530,1765696569193,-150.0,0.00016673,2]
[398469531,1765696569216,-1000.0,0.00016678,2]
[398469532,1765696569240,-150.0,0.00016695,2]
[398469533,1765696569268,-500.0,0.00016712,2]
[398469534,1765696569292,-200.0,0.00016712,2]
[398469535,1765696569318,-1000.0,0.00016753,2]
[398469536,1765696569343,-210.35573897,0.00016753,2]
[398469537,1765696569367,-150.0,0.00016754,2]
[398469538,1765696569391,-1603.0,0.00016773,2]
[398469539,1765696569414,-1000.0,0.00016788,2]
[398469540,1765696569441,-3032.45961542,0.00016797,2]
[398469542,1765697187188,2039.00644164,0.00015,2]
[398469543,1765697225336,2138.75449344,0.00015,2]
[398469551,1765697316514,-610.47975063,0.00015806,2]
[398469552,1765697319079,-78.04024937,0.00015806,2]
[398469553,1765697319104,-195.8274349,0.00015836,3]
[398469554,1765697321883,-330.89964974,0.00015836,3]
[398469555,1765697327737,-263.31375239,0.00015836,3]
[398469556,1765697333281,-208.95916297,0.00015836,3]
[398469557,1765697333303,-4.11312038,0.00015848,2]
[398469558,1765697335560,-501.77934027,0.00015848,2]
[398469560,1765697340914,-366.40181393,0.00015848,2]
[398469561,1765697342443,-127.70572542,0.00015848,2]
[398469562,1765697356713,1000.0,0.00022,30]
[398469563,1765697377121,-314.84497872,0.0001586,2]
[398469564,1765697380460,-171.44471803,0.0001586,2]
[398469565,1765697382822,-298.0,0.0001586,2]
[398469566,1765697389817,-300.5706229,0.0001586,2]
[398469567,1765697395734,-151.80066059,0.0001586,2]
[398469568,1765697398469,-232.17786394,0.0001586,2]
[398469569,1765697402246,-164.83,0.0001586,2]
[398469570,1765697404867,-250.5060317,0.0001586,2]
[398469571,1765697406404,-32.4939683,0.0001586,2]
[398469572,1765697406427,-125.85773855,0.0001586,2]
[398469573,1765697409113,-213.92952528,0.0001586,2]
[398469574,1765697414233,-169.26868773,0.0001586,2]
[398469575,1765697415890,-251.83786806,0.0001586,2]
[398469576,1765697420156,-156.36002575,0.0001586,2]
[398469577,1765697422094,-220.51439262,0.0001586,2]
[398469578,1765697426346,-289.49045858,0.0001586,2]
[398469585,1765697431939,-179.07245925,0.0001586,2]
[398469586,1765697431950,-150.0,0.000162,2]
[398469587,1765697431960,-150.0,0.000162,2]
[398469588,1765697431970,-150.0,0.000162,2]
[398469589,1765697431979,-1889.44914174,0.000162,5]
[398469590,1765697431990,-4233.80050414,0.000162,5]
[398469591,1765697432000,-300.0,0.00016363,2]
[398469592,1765697432010,-300.0,0.00016371,2]
[398469593,1765697432019,-500.64872299,0.00016373,2]
[398469594,1765697432029,-152.17,0.00016373,2]
[398469595,1765697432038,-151.9,0.00016373,2]
[398469596,1765697432047,-151.14,0.00016373,2]
[398469597,1765697432057,-150.88,0.00016373,2]
[398469598,1765697432068,-500.48874049,0.00016373,2]
[398469599,1765697432077,-152.59730385,0.00016373,2]
[398469600,1765697432087,-500.0,0.00016373,2]
[398469601,1765697432097,-500.0,0.00016373,2]
[398469602,1765697432107,-500.0,0.00016373,2]
[398469603,1765697432116,-500.0,0.00016373,2]
[398469604,1765697432126,-500.0,0.00016373,2]
[398469605,1765697432135,-500.42448479,0.00016373,2]
[398469606,1765697432145,-500.0,0.00016373,2]
[398469607,1765697432157,-500.0,0.00016373,2]
[398469608,1765697432166,-500.0,0.00016373,2]
[398469609,1765697432176,-500.0,0.00016373,2]
[398469610,1765697432185,-500.0,0.00016373,2]
[398469611,1765697432195,-500.87932998,0.00016373,2]
[398469612,1765697432204,-201.95861982,0.00016373,2]
[398469613,1765697432214,-173.94344354,0.00016373,2]
[398469614,1765697432226,-326.05655646,0.00016373,2]
[398469615,1765697432236,-427.48614141,0.00016373,2]
[398469616,1765697432247,-72.51385859,0.00016373,2]
[398469617,1765697432257,-926.48614141,0.00016376,2]
[398469618,1765697432268,-458.42519,0.00016376,2]
[398469619,1765697432279,-1654.08866859,0.00016376,2]
[398469621,1765697432289,-250.0,0.00016412,2]
[398469623,1765697432299,-365.52388123,0.00016438,2]
[398469624,1765697432310,-6041.07611877,0.00016438,2]
[398469625,1765697432320,-5888.0,0.00016552,2]
[398469626,1765697432330,-150.0,0.00016575,2]
[398469627,1765697432340,-500.0,0.00016575,2]
[398469628,1765697432349,-343.33273238,0.00016582,2]
[398469629,1765697432364,-480.62,0.000166,2]
[398469630,1765697432374,-588.0,0.0001661,2]
[398469631,1765697432384,-1726.0,0.00016643,2]
[398469632,1765697432394,-220.1196101,0.00016662,2]
[398469633,1765697432403,-166.88,0.00016668,2]
[398469634,1765697432414,-211.0,0.00016672,2]
[398469635,1765697432424,-942.0,0.00016706,2]
[398469636,1765697432433,-500.0,0.00016712,2]
[398469637,1765697432442,-7109.50021211,0.00016715,2]
[398469638,1765697432465,-976.66904819,0.00016715,2]
[398469639,1765697432477,-932.31905122,0.00016715,2]
[398469640,1765697432490,-658.23230958,0.00016715,2]
[398469641,1765697432502,-1027.11678612,0.00016715,2]
[398469642,1765697432514,-2060.53919278,0.00016715,2]
[398469643,1765697432526,-1435.72031998,0.0001672,2]
[398469644,1765697432551,-1793.85792086,0.0001672,2]
[398469645,1765697432561,-1781.02,0.0001672,2]
[398469646,1765697432570,-150.0,0.00016778,2]
[398469647,1765697432581,-3227.51810638,0.00016797,2]
[398469648,1765697432591,-237.79626013,0.00016797,2]
[398469649,1765697432601,-1857.88,0.000168,2]
[398469650,1765697432610,-507.46007459,0.00016812,2]
[398469651,1765697432620,-530.74023107,0.00016812,2]
[398469652,1765697432630,-500.0,0.00016812,2]
[398469653,1765697432639,-3.05819925,0.00016812,2]
[398469672,1765697438793,-269.4317585,0.00016812,2]
[398469673,1765697438803,-484.64673105,0.00016812,2]
[398469674,1765697438814,-15.35326895,0.00016812,2]
[398469675,1765697438823,-251.14215855,0.00016812,2]
[398469676,1765697438832,-500.0,0.00016812,2]
[398469677,1765697438841,-500.0,0.00016812,2]
[398469678,1765697438851,-500.0,0.00016812,2]
[398469679,1765697438861,-50.5164125,0.00016812,2]
[398469680,1765697438872,-369.77548234,0.00016812,2]
[398469681,1765697438882,-500.0,0.00016812,2]
[398469682,1765697438891,-500.0,0.00016812,2]
[398469683,1765697438901,-500.0,0.00016812,2]
[398469684,1765697438911,-500.0,0.00016812,2]
[398469685,1765697438920,-500.0,0.00016812,2]
[398469686,1765697438930,-500.0,0.00016812,2]
[398469687,1765697438939,-500.0,0.00016812,2]
[398469688,1765697438949,-423.32967115,0.00016812,2]
[398469689,1765697438965,-76.67032885,0.00016812,2]
[398469690,1765697438975,-500.0,0.00016812,2]
[398469691,1765697438984,-500.0,0.00016812,2]
[398469692,1765697438996,-500.0,0.00016812,2]
[398469693,1765697439005,-500.0,0.00016812,2]
[398469694,1765697439015,-500.0,0.00016812,2]
[398469695,1765697439026,-500.0,0.00016812,2]
[398469696,1765697439036,-500.0,0.00016812,2]
[398469697,1765697439045,-500.0,0.00016812,2]
[398469698,1765697439055,-500.0,0.00016812,2]
[398469699,1765697439064,-500.0,0.00016812,2]
[398469700,1765697439074,-500.0,0.00016812,2]
[398469701,1765697439083,-500.0,0.00016812,2]
[398469702,1765697439093,-500.0,0.00016812,2]
[398469703,1765697439102,-500.0,0.00016812,2]
[398469704,1765697439112,-500.0,0.00016812,2]
[398469705,1765697439122,-500.0,0.00016812,2]
[398469706,1765697439131,-500.0,0.00016812,2]
[398469707,1765697439141,-500.0,0.00016812,2]
[398469708,1765697439150,-500.0,0.00016812,2]
[398469709,1765697439159,-500.0,0.00016812,2]
[398469710,1765697439169,-500.0,0.00016812,2]
[398469711,1765697439178,-500.0,0.00016812,2]
[398469712,1765697439188,-500.0,0.00016812,2]
[398469713,1765697439197,-500.0,0.00016812,2]
[398469714,1765697439206,-48.1355871,0.00016812,2]
[398469715,1765697439218,-451.8644129,0.00016812,2]
[398469716,1765697439227,-500.0,0.00016812,2]
[398469717,1765697439236,-500.0,0.00016812,2]
[398469718,1765697439245,-500.0,0.00016812,2]
[398469719,1765697439254,-500.0,0.00016812,2]
[398469720,1765697439263,-500.0,0.00016812,2]
[398469721,1765697439272,-500.0,0.00016812,2]
[398469722,1765697439281,-500.0,0.00016812,2]
[398469723,1765697439290,-500.0,0.00016812,2]
[398469724,1765697439299,-500.0,0.00016812,2]
[398469725,1765697439308,-500.0,0.00016812,2]
[398469726,1765697439317,-500.0,0.00016812,2]
[398469727,1765697439327,-195.37110684,0.00016812,2]
[398469728,1765697439336,-500.0,0.00016812,2]
[398469729,1765697439346,-500.0,0.00016812,2]
[398469730,1765697439357,-500.0,0.00016812,2]
[398469731,1765697439367,-500.0,0.00016812,2]
[398469732,1765697439376,-500.0,0.00016812,2]
[398469733,1765697439385,-500.0,0.00016812,2]
[398469734,1765697439394,-500.0,0.00016812,2]
[398469735,1765697439404,-500.0,0.00016812,2]
[398469736,1765697439414,-500.0,0.00016812,2]
[398469737,1765697439423,-500.0,0.00016812,2]
[398469738,1765697439434,-500.0,0.00016812,2]
[398469739,1765697439444,-500.0,0.00016812,2]
[398469740,1765697439454,-500.0,0.00016812,2]
[398469741,1765697439464,-500.0,0.00016812,2]
[398469742,1765697439474,-500.0,0.00016812,2]
[398469743,1765697439484,-500.0,0.00016812,2]
[398469744,1765697439493,-500.0,0.00016812,2]
[398469745,1765697439502,-500.0,0.00016812,2]
[398469746,1765697439511,-500.0,0.00016812,2]
[398469747,1765697439520,-573.82104183,0.00016812,2]
[398469748,1765697439535,-500.0,0.00016812,2]
[398469749,1765697439544,-500.0,0.00016812,2]
[398469750,1765697439554,-928.83823526,0.00016812,2]
[398469751,1765697439563,-928.83823526,0.00016812,2]
[398469752,1765697439572,-928.83823526,0.00016812,2]
[398469753,1765697439582,-928.83823526,0.00016812,2]
[398469754,1765697439591,-928.83823526,0.00016812,2]
[398469755,1765697439600,-928.83823526,0.00016812,2]
[398469756,1765697439609,-928.83823526,0.00016812,2]
[398469757,1765697439618,-928.83823526,0.00016812,2]
[398469758,1765697439627,-928.83823526,0.00016812,2]
[398469759,1765697439641,-928.83823526,0.00016812,2]
[398469760,1765697439651,-928.83823526,0.00016812,2]
[398469761,1765697439660,-928.83823526,0.00016812,2]
[398469762,1765697439669,-928.83823526,0.00016812,2]
[398469763,1765697439678,-928.83823526,0.00016812,2]
[398469764,1765697439687,-928.83823526,0.00016812,2]
[398469765,1765697439697,-928.83823526,0.00016812,2]
[398469766,1765697439706,-928.83823526,0.00016812,2]
[398469767,1765697439715,-928.83823526,0.00016812,2]
[398469768,1765697439724,-928.83823526,0.00016812,2]
[398469769,1765697439733,-928.83823526,0.00016812,2]
[398469770,1765697439743,-928.83823526,0.00016812,2]
[398469771,1765697439752,-928.83823526,0.00016812,2]
[398469772,1765697439762,-928.83823526,0.00016812,2]
[398469773,1765697439771,-928.83823526,0.00016812,2]
[398469774,1765697439780,-442.64807672,0.00016812,2]
[398469775,1765697439983,-486.19015854,0.00016812,2]
[398469776,1765697439993,-65.56026258,0.00016812,2]
[398469777,1765697440004,-863.27797268,0.00016812,2]
[398469778,1765697440013,-928.83823526,0.00016812,2]
[398469779,1765697440022,-928.83823526,0.00016812,2]
[398469780,1765697440031,-211.38853688,0.00016812,2]
[398469781,1765697440044,-580.7576509,0.00016812,2]
[398469782,1765697440056,-136.69204748,0.00016812,2]
[398469783,1765697440065,-928.83823526,0.00016812,2]
[398469784,1765697440075,-500.0,0.00016812,2]
[398469785,1765697440085,-891.68470585,0.00016812,2]
[398469786,1765697440094,-328.97353321,0.00016812,2]
[398469787,1765697440123,-562.71117264,0.00016812,2]
[398469788,1765697440132,-891.68470585,0.00016812,2]
[398469789,1765697440142,-891.68470585,0.00016812,2]
[398469790,1765697440151,-891.68470585,0.00016812,2]
[398469791,1765697440159,-891.68470585,0.00016812,2]
[398469792,1765697440169,-891.68470585,0.00016812,2]
[398469793,1765697440178,-891.68470585,0.00016812,2]
[398469794,1765697440187,-891.68470585,0.00016812,2]
[398469795,1765697440196,-419.91117527,0.00016812,2]
[398469796,1765697440207,-471.77353058,0.00016812,2]
[398469797,1765697440228,-698.60604472,0.00016812,2]
[398469798,1765697440239,-193.07866113,0.00016812,2]
[398469799,1765697440248,-430.78096444,0.00016812,2]
[398469800,1765697440259,-460.90374141,0.00016812,2]
[398469801,1765697440268,-891.68470585,0.00016812,2]
[398469802,1765697440277,-891.68470585,0.00016812,2]
[398469803,1765697440286,-891.68470585,0.00016812,2]
[398469804,1765697440295,-502.72945743,0.00016812,2]
[398469805,1765697440304,-713.70183399,0.00016817,2]
[398469806,1765697440313,-153.90632575,0.00016817,2]
[398469807,1765697440323,-152.0,0.00016817,2]
[398469808,1765697440332,-152.0,0.00016817,2]
[398469809,1765697440341,-152.0,0.00016817,2]
[398469810,1765697440350,-672.0101576,0.00016817,2]
[398469811,1765697440362,-15.3898424,0.00016817,2]
[398469812,1765697440372,-500.0,0.00016819,2]
[398469813,1765697440383,-217.30598699,0.00016819,2]
[398469814,1765697440395,-17.77175523,0.00016819,2]
[398469815,1765697440405,-197.35348068,0.00016819,2]
[398469816,1765697440415,-151.0,0.0001682,2]
[398469817,1765697440426,-151.0,0.0001682,2]
[398469818,1765697440435,-151.0,0.0001682,2]
[398469819,1765697440444,-151.0,0.0001682,2]
[398469820,1765697440454,-151.0,0.0001682,2]
[398469821,1765697440463,-173.245984,0.0001682,2]
[398469822,1765697440477,-151.000014,0.0001682,2]
[398469823,1765697440496,-151.0,0.0001682,2]
[398469824,1765697440515,-151.0,0.0001682,2]
[398469825,1765697440529,-151.0,0.0001682,2]
[398469826,1765697440547,-200.0,0.00016824,2]
[398469827,1765697440564,-325.29443632,0.00016836,2]
[398469828,1765697440579,-500.0,0.00016849,2]
[398469829,1765697440593,-3229.57824078,0.00016851,2]
[398469830,1765697440607,-7713.6716498,0.00016853,2]
[398469831,1765697440623,-200.0,0.00016863,2]
[398469832,1765697440644,-1000.0,0.00016893,2]
[398469833,1765697440662,-3402.84129854,0.00016899,2]
[398469834,1765697440679,-177.01439783,0.000169,2]
[398469835,1765697440695,-167.63064892,0.0001691,2]
[398469836,1765697440710,-1944.97673,0.0001692,2]
[398469837,1765697440726,-1000.0,0.00016921,2]
[398469838,1765697440740,-153.30692586,0.00016921,2]
[398469839,1765697440759,-1000.0,0.00016921,2]
[398469840,1765697440776,-1000.0,0.00016921,2]
[398469841,1765697440792,-1607.0,0.00016926,2]
[398469842,1765697440805,-613.199,0.00016926,2]
[398469843,1765697440819,-3378.35072018,0.00016926,2]
[398469844,1765697440842,-72.64927982,0.00016926,2]
[398469845,1765697440854,-481.15230225,0.00016943,2]
[398469846,1765697440873,-520.9019086,0.0001697,2]
[398469847,1765697441281,-1.7e-07,0.0001697,2]
[398469848,1765697441306,-474.3223653,0.0001697,2]
[398469849,1765697441320,-500.0,0.00016973,2]
[398469850,1765697441335,-500.0,0.00016973,2]
[398469851,1765697441350,-500.0,0.00016973,2]
[398469852,1765697441365,-500.0,0.00016973,2]
[398469853,1765697441384,-178.98590511,0.00016973,2]
[398469854,1765697441398,-500.0,0.00016973,2]
[398469855,1765697441412,-500.0,0.00016973,2]
[398469856,1765697441426,-500.0,0.00016973,2]
[398469857,1765697441439,-151.0,0.00016973,2]
[398469858,1765697441453,-555.55,0.00016978,2]
[398469859,1765697441467,-543.65,0.00016978,2]
[398469860,1765697441482,-151.0,0.00016982,2]
[398469861,1765697441495,-151.000001,0.00016982,2]
[398469862,1765697441514,-3229.57824078,0.00016982,2]
[398469863,1765697441531,-644.07006522,0.00016986,2]
[398469864,1765697441546,-151.0,0.00016986,2]
[398469865,1765697441563,-600.0,0.00016986,2]
[398469866,1765697441578,-500.0,0.00016999,2]
[398469867,1765697441593,-500.0,0.00016999,2]
[398469868,1765697441609,-538.22058298,0.00016999,2]
[398469869,1765697441623,-500.0,0.00016999,2]
[398469870,1765697441638,-500.0,0.00016999,2]
[398469871,1765697441652,-500.0,0.00016999,2]
[398469872,1765697441666,-500.0,0.00016999,2]
[398469873,1765697441680,-500.0,0.00016999,2]
[398469874,1765697441695,-500.0,0.00016999,2]
[398469875,1765697441709,-500.0,0.00016999,2]
[398469876,1765697441723,-500.0,0.00016999,2]
[398469877,1765697441737,-500.0,0.00016999,2]
[398469878,1765697441752,-500.0,0.00016999,2]
[398469879,1765697441766,-500.0,0.00016999,2]
[398469880,1765697441780,-511.95166241,0.00016999,2]
[398469881,1765697441793,-512.94393691,0.00016999,2]
[398469882,1765697441807,-500.0,0.00016999,2]
[398469883,1765697441820,-500.0,0.00016999,2]
[398469884,1765697441834,-338.75948544,0.00016999,2]
[398469885,1765697441847,-500.0,0.00016999,2]
[398469886,1765697441861,-500.0,0.00016999,2]
[398469887,1765697441874,-502.36206807,0.00016999,2]
[398469888,1765697441887,-500.0,0.00016999,2]
[398469889,1765697441900,-500.0,0.00016999,2]
[398469890,1765697441912,-227.72306399,0.00016999,2]
[398469891,1765697441937,-151.0,0.00016812,2]
[398469892,1765697441950,-227.66,0.00016999,2]
[398469898,1765697442952,-151.0,0.00016812,2]
[398469899,1765697442965,-515.63838347,0.00016926,2]
[398469901,1765697442981,-1910.36161653,0.00016926,2]
[398469904,1765697442994,-151.0,0.00016982,2]
[398469906,1765697443007,-151.0,0.00016982,2]
[398469907,1765697443020,-44.61693601,0.00016999,2]
[398469908,1765697443033,-500.0,0.00016999,2]
[398469909,1765697443045,-192.19442597,0.00016999,2]
[398469910,1765697443061,-307.80557403,0.00016999,2]
[398469911,1765697443073,-232.18506815,0.00016999,2]
[398469912,1765697443099,-267.81493185,0.00016999,2]
[398469913,1765697443111,-301.24623816,0.00016999,2]
[398469914,1765697443126,-198.75376184,0.00016999,2]
[398469915,1765697443139,-343.15138522,0.00016999,2]
[398469916,1765697443166,-156.84861478,0.00016999,2]
[398469917,1765697443179,-500.0,0.00016999,2]
[398469919,1765697443192,-500.0,0.00016999,2]
[398469920,1765697443204,-18.06201922,0.00016999,2]
[398469921,1765697443219,-500.0,0.00016999,2]
[398469922,1765697443236,-14.76507006,0.00016999,2]
[398469923,1765697443248,-500.0,0.00016999,2]
[398469924,1765697443261,-500.0,0.00016999,2]
[398469925,1765697443274,-127.48128731,0.00016999,2]
[398469941,1765697446573,-86.49971866,0.00016812,2]
[398469942,1765697446588,-64.50028134,0.00016812,2]
[398469943,1765697446600,-151.0,0.00016982,2]
[398469944,1765697446611,-372.51871269,0.00016999,2]
[398469945,1765697446623,-244.21820188,0.00016999,2]
[398469946,1765697446637,-903.49789122,0.00016999,2]
[398469965,1765697544585,436.78904906,0.000175,30]
[398470026,1765698261423,-532.4869348,0.00015948,2]
[398470027,1765698265651,-178.44131708,0.00015948,2]
[398470028,1765698269858,-170.11079776,0.00015948,2]
[398470037,1765698471527,-200.0,0.00015863,3]
[398470038,1765698471550,-70.1145141,0.00015902,2]
[398470043,1765698591438,-200.0,0.00015785,2]
[398470044,1765698591463,-62.05562248,0.00015863,3]
[398470057,1765698632066,-150.0,0.00015758,2]
[398470059,1765698632076,-88.94437752,0.00015863,3]
[398470061,1765698632085,-283.0,0.00015902,2]
[398470064,1765698632095,-91.4354859,0.00015902,2]
[398470066,1765698632104,-8.93095036,0.00015948,2]
[398470068,1765698632114,-166.59,0.00016296,2]
[398470070,1765698632124,-500.0,0.00016373,2]
[398470072,1765698632133,-500.0,0.00016373,2]
[398470074,1765698632142,-2260.7047686,0.00016442,2]
[398470076,1765698632151,-550.0,0.00016498,2]
[398470078,1765698632160,-500.0,0.00016499,2]
[398470080,1765698632170,-514.55441955,0.00016499,2]
[398470082,1765698632180,-500.0,0.00016499,2]
[398470084,1765698632189,-500.0,0.00016499,2]
[398470086,1765698632199,-500.0,0.00016499,2]
[398470088,1765698632212,-500.0,0.00016499,2]
[398470090,1765698632222,-500.0,0.00016499,2]
[398470092,1765698632231,-500.0,0.00016499,2]
[398470094,1765698632241,-500.0,0.00016499,2]
[398470096,1765698632251,-500.0,0.00016499,2]
[398470097,1765698632261,-500.0,0.00016499,2]
[398470098,1765698632269,-500.0,0.00016499,2]